[Event "FRA-ch Open A-D 2018"]
[Site "Nimes"]
[Date "2018.08.23"]
[Round "6"]
[White "Pham, Virgile"]
[Black "Auffray-Bonnet, Gaspard"]
[Result "0-1"]
[ECO "B21"]
[WhiteElo "1692"]
[BlackElo "1736"]
[Annotator "NA RC"]
[PlyCount "78"]
[EventDate "2018.08.18"]
[EventType "tourn"]
[EventCountry "FRA"]
[SourceTitle "playchess.com"]
[Source "ChessBase"]
[SourceQuality "1"]
[TimeControl "40/5400+30:1800+30"]

1. e4 {[%emt 0:00:00]} c5 {[%emt 0:00:00]} 2. d4 {[%emt 0:00:00]} cxd4 {[%emt 0:00:00]} 3. c3 {[%emt 0:00:00]} d5 {[%emt 0:00:02]} 4. exd5 Nf6 {[%emt 0:01:43]} 5. cxd4 {[%emt 0:07:35]} Nxd5 {[%emt 0:00:16]} 6. Nc3 {[%emt 0:02:17]} Bf5 {[%emt 0:04:31]} 7. Bd3 {[%emt 0:04:19]} Bxd3 {[%emt 0:00:33]} 8. Qxd3 {[%emt 0:13:46]} Nb4 {[%emt 0:05:08]} 9. Qb5+ {[%emt 0:01:10]} N8c6 {[%emt 0:00:21]} 10. d5 {[%emt 0:09:00]} a6 {[%emt 0:00:50]} 11. Qa4 {[%emt 0:01:13]} b5 {[%emt 0:01:08]} 12. Qd1 {[%emt 0:01:00]} Nd4 {[%emt 0:00:26]} 13. Kf1 {[%emt 0:01:03]} Nbc2 {[%emt 0:02:20]} 14. Be3 {[%emt 0:03:38]} Nxe3+ {[%emt 0:00:42]} 15. fxe3 Nf5 {[%emt 0:00:04]} 16. Qf3 {[%emt 0:01:49]} g6 {[%emt 0:01:46]} 17. Nge2 {[%emt 0:00:30]} b4 {[%emt 0:01:30]} 18. Nd1 {[%emt 0:02:07]} Bg7 {[%emt 0:02:08]} 19. Kf2 {[%emt 0:01:05]} O-O {[%emt 0:00:56]} 20. Rf1 {[%emt 0:00:57]} Rc8 {[%emt 0:03:48]} 21. Kg1 {[%emt 0:11:40]} Rc2 {[%emt 0:02:16]} 22. Rc1 {[%emt 0:03:33]} Qc7 {[%emt 0:02:36]} 23. Nf2 {[%emt 0:01:28]} Bxb2 {[%emt 0:01:12]} 24. Rb1 {[%emt 0:04:35]} Be5 {[%emt 0:00:34]} 25. Ng4 h5 {[%emt 0:02:47]} 26. Nxe5 {[%emt 0:08:22]} Qxe5 {[%emt 0:00:01]} 27. e4 {[%emt 0:02:00]} Nd4 {[%emt 0:00:40]} 28. Nxd4 {[%emt 0:00:06]} Qxd4+ {[%emt 0:00:11]} 29. Kh1 {[%emt 0:00:05]} Rxa2 {[%emt 0:00:35]} 30. Rbc1 {[%emt 0:02:39]} a5 {[%emt 0:01:20]} 31. Rc7 {[%emt 0:01:04]} Qe5 {[%emt 0:00:52]} 32. Rc6 {[%emt 0:01:09]} Qg5 {[%emt 0:01:09]} 33. d6 {[%emt 0:01:10]} exd6 {[%emt 0:02:04]} 34. Rxd6 {[%emt 0:00:45]} Qg4 {[%emt 0:00:43]} 35. h3 {[%emt 0:09:05]} Qxf3 {[%emt 0:00:02]} 36. Rxf3 {[%emt 0:00:29]} a4 {[%emt 0:00:23]} 37. Rb6 {[%emt 0:01:01]} b3 {[%emt 0:00:19]} 38. Rf1 {[%emt 0:00:34]} b2 {[%emt 0:00:13]} 39. Kg1 {[%emt 0:01:01]} a3 {[%emt 0:01:05]} 0-1

[Event "FRA-ch Open A-D 2018"]
[Site "Nimes"]
[Date "2018.08.23"]
[Round "6"]
[White "Cregut, Marian"]
[Black "Alashtar, Aasef"]
[Result "0-1"]
[ECO "B06"]
[WhiteElo "1638"]
[BlackElo "1724"]
[Annotator "NA RC"]
[PlyCount "94"]
[EventDate "2018.08.18"]
[EventType "tourn"]
[EventCountry "FRA"]
[SourceTitle "playchess.com"]
[Source "ChessBase"]
[SourceQuality "1"]
[TimeControl "40/5400+30:1800+30"]

1. e4 {[%emt 0:00:00]} g6 {[%emt 0:03:16]} 2. d4 {[%emt 0:00:00]} Bg7 {[%emt 0:00:04]} 3. c3 {[%emt 0:00:31]} d6 {[%emt 0:02:25]} 4. f4 {[%emt 0:05:49]} e6 {[%emt 0:01:49]} 5. Nf3 {[%emt 0:02:51]} Ne7 {[%emt 0:00:13]} 6. Bd3 {[%emt 0:03:23]} O-O {[%emt 0:05:00]} 7. O-O {[%emt 0:08:13]} c5 {[%emt 0:10:05]} 8. Nbd2 {[%emt 0:11:44]} Nbc6 {[%emt 0:07:31]} 9. Nb3 {[%emt 0:05:09]} b6 {[%emt 0:03:21]} 10. Be3 {[%emt 0:05:24]} a5 {[%emt 0:07:34]} 11. a4 {[%emt 0:05:04]} Qc7 {[%emt 0:10:19]} 12. Qd2 {[%emt 0:09:06]} Ba6 {[%emt 0:05:16]} 13. Bxa6 {[%emt 0:05:41]} Rxa6 {[%emt 0:00:00]} 14. Rad1 {[%emt 0:03:56]} c4 {[%emt 0:06:56]} 15. Qe2 {[%emt 0:01:59]} d5 {[%emt 0:02:55]} 16. e5 {[%emt 0:01:51]} Raa8 {[%emt 0:00:03]} 17. Na1 {[%emt 0:01:14]} b5 {[%emt 0:00:33]} 18. b3 {[%emt 0:02:57]} Na7 {[%emt 0:00:17]} 19. bxc4 {[%emt 0:00:36]} dxc4 {[%emt 0:00:44]} 20. axb5 {[%emt 0:00:38]} Nxb5 {[%emt 0:00:02]} 21. Rc1 {[%emt 0:01:29]} Nd5 {[%emt 0:00:52]} 22. Bd2 {[%emt 0:00:58]} Rfb8 {[%emt 0:00:51]} 23. Ng5 {[%emt 0:00:31]} a4 {[%emt 0:04:20]} 24. Ne4 {[%emt 0:01:00]} Na3 {[%emt 0:05:28]} 25. Nc2 {[%emt 0:01:05]} Nxc2 {[%emt 0:00:06]} 26. Rxc2 {[%emt 0:00:11]} Bf8 {[%emt 0:00:43]} 27. Ra2 {[%emt 0:00:40]} Rb3 {[%emt 0:00:31]} 28. Rfa1 {[%emt 0:01:46]} a3 {[%emt 0:00:27]} 29. g4 {[%emt 0:03:55]} Rab8 {[%emt 0:05:36]} 30. Qg2 {[%emt 0:01:17]} Rb1+ {[%emt 0:01:25]} 31. Kf2 {[%emt 0:02:37]} Rxa1 {[%emt 0:01:09]} 32. Rxa1 {[%emt 0:00:15]} Rb2 {[%emt 0:00:08]} 33. Kf3 {[%emt 0:02:34]} Qb7 {[%emt 0:01:31]} 34. Kg3 {[%emt 0:00:46]} Qb3 {[%emt 0:00:44]} 35. f5 {[%emt 0:04:26]} Rb1 {[%emt 0:06:57]} 36. fxe6 {[%emt 0:03:01]} fxe6 {[%emt 0:03:33]} 37. Qf3 {[%emt 0:02:31]} Rxa1 {[%emt 0:01:20]} 38. Nf6+ {[%emt 0:00:20]} Nxf6 {[%emt 0:00:49]} 39. Qxf6 {[%emt 0:00:12]} Qb7 {[%emt 0:01:30]} 40. Qxe6+ {[%emt 0:01:02]} Qf7 {[%emt 0:00:08]} 41. Qc8 {[%emt 0:30:19]} Rg1+ {[%emt 0:30:30]} 42. Kh3 {[%emt 0:00:24]} Qf3+ {[%emt 0:00:13]} 43. Kh4 {[%emt 0:00:20]} Qf2+ {[%emt 0:01:05]} 44. Kh3 {[%emt 0:00:27]} Qg2+ {[%emt 0:00:10]} 45. Kh4 {[%emt 0:00:42]} Qxh2+ {[%emt 0:00:03]} 46. Kg5 {[%emt 0:00:20]} Qxd2+ {[%emt 0:00:07]} 47. Kf6 {[%emt 0:00:01]} Qf4+ {[%emt 0:00:34]} 0-1

[Event "FRA-ch Open A-D 2018"]
[Site "Nimes"]
[Date "2018.08.23"]
[Round "6"]
[White "Chemier, Maxime"]
[Black "Guerin, Laurent"]
[Result "1-0"]
[ECO "C02"]
[WhiteElo "1626"]
[BlackElo "1538"]
[Annotator "NA RC"]
[PlyCount "57"]
[EventDate "2018.08.18"]
[EventType "tourn"]
[EventCountry "FRA"]
[SourceTitle "playchess.com"]
[Source "ChessBase"]
[SourceQuality "1"]
[TimeControl "40/5400+30:1800+30"]

1. e4 {[%emt 0:00:00]} e6 {[%emt 0:00:05]} 2. d4 {[%emt 0:00:04]} d5 {[%emt 0:01:27]} 3. e5 {[%emt 0:00:12]} c5 {[%emt 0:02:12]} 4. c3 {[%emt 0:00:50]} Nc6 {[%emt 0:01:40]} 5. Nf3 {[%emt 0:01:09]} Bd7 {[%emt 0:01:20]} 6. Be2 {[%emt 0:00:38]} cxd4 {[%emt 0:06:47]} 7. cxd4 {[%emt 0:00:25]} Bb4+ {[%emt 0:01:48]} 8. Bd2 {[%emt 0:03:38]} Bxd2+ {[%emt 0:06:49]} 9. Nbxd2 {[%emt 0:00:40]} Nge7 {[%emt 0:00:30]} 10. O-O {[%emt 0:01:15]} Nf5 {[%emt 0:01:32]} 11. Nb3 {[%emt 0:01:17]} O-O {[%emt 0:01:57]} 12. a3 {[%emt 0:12:31]} b6 {[%emt 0:03:39]} 13. Bd3 {[%emt 0:03:40]} Nce7 {[%emt 0:10:05]} 14. Qd2 {[%emt 0:14:22]} Qe8 {[%emt 0:06:41]} 15. Ng5 {[%emt 0:11:11]} Bb5 {[%emt 0:03:28]} 16. g4 {[%emt 0:01:23]} Nh4 {[%emt 0:19:31]} 17. Bxh7+ {[%emt 0:08:06]} Kh8 {[%emt 0:00:30]} 18. Bd3 {[%emt 0:00:18]} f6 {[%emt 0:03:54]} 19. exf6 {[%emt 0:03:20]} Rxf6 {[%emt 0:01:26]} 20. f4 {[%emt 0:05:48]} Bxd3 {[%emt 0:04:44]} 21. Qxd3 {[%emt 0:00:36]} Qg6 {[%emt 0:05:06]} 22. Qg3 {[%emt 0:04:01]} Qh6 {[%emt 0:03:14]} 23. Rae1 {[%emt 0:07:24]} Raf8 {[%emt 0:03:49]} 24. Nh3 {[%emt 0:01:21]} Rg6 {[%emt 0:03:50]} 25. Ng5 {[%emt 0:04:36]} Rgf6 {[%emt 0:00:49]} 26. Nxe6 {[%emt 0:01:17]} Rxe6 {[%emt 0:02:38]} 27. Rxe6 {[%emt 0:00:07]} Qxe6 {[%emt 0:00:11]} 28. Qxh4+ {[%emt 0:00:05]} Kg8 {[%emt 0:01:10]} 29. Re1 {[%emt 0:00:08]} 1-0

[Event "FRA-ch Open A-D 2018"]
[Site "Nimes"]
[Date "2018.08.23"]
[Round "6"]
[White "Greget, Mathias"]
[Black "Rasolo, Loick"]
[Result "0-1"]
[ECO "C45"]
[WhiteElo "1577"]
[BlackElo "1723"]
[Annotator "NA RC"]
[PlyCount "40"]
[EventDate "2018.08.18"]
[EventType "tourn"]
[EventCountry "FRA"]
[SourceTitle "playchess.com"]
[Source "ChessBase"]
[SourceQuality "1"]
[TimeControl "40/5400+30:1800+30"]

1. e4 {[%emt 0:00:00]} Nc6 {[%emt 0:05:45]} 2. Nf3 {[%emt 0:00:00]} e5 {[%emt 0:00:14]} 3. d4 {[%emt 0:00:00]} exd4 {[%emt 0:00:04]} 4. Nxd4 {[%emt 0:00:00]} Nf6 {[%emt 0:00:06]} 5. Nxc6 {[%emt 0:00:05]} bxc6 {[%emt 0:00:06]} 6. e5 {[%emt 0:00:11]} Nd5 {[%emt 0:00:09]} 7. c4 {[%emt 0:00:10]} Nb6 {[%emt 0:00:42]} 8. Nc3 {[%emt 0:01:01]} Bb4 {[%emt 0:04:33]} 9. Qb3 {[%emt 0:02:41]} Qe7 {[%emt 0:01:52]} 10. Be2 {[%emt 0:00:41]} O-O {[%emt 0:04:42]} 11. O-O {[%emt 0:01:06]} a5 {[%emt 0:05:37]} 12. Bf4 {[%emt 0:03:19]} d6 {[%emt 0:11:49]} 13. exd6 {[%emt 0:05:29]} cxd6 {[%emt 0:02:53]} 14. Bf3 {[%emt 0:01:38]} Ba6 {[%emt 0:01:29]} 15. Bxc6 {[%emt 0:05:03]} Bxc4 {[%emt 0:02:56]} 16. Qc2 {[%emt 0:01:01]} Rac8 {[%emt 0:00:37]} 17. Rfe1 {[%emt 0:06:49]} Qf6 {[%emt 0:01:51]} 18. Qe4 {[%emt 0:01:18]} Bxc3 {[%emt 0:00:24]} 19. bxc3 {[%emt 0:00:20]} d5 {[%emt 0:00:11]} 20. Be5 {[%emt 0:08:01]} dxe4 {[%emt 0:01:18]} 0-1

[Event "FRA-ch Open A-D 2018"]
[Site "Nimes"]
[Date "2018.08.23"]
[Round "6"]
[White "Leprince, Solal"]
[Black "Legeay, Julie"]
[Result "1-0"]
[ECO "B08"]
[WhiteElo "1432"]
[BlackElo "1477"]
[Annotator "NA RC"]
[PlyCount "65"]
[EventDate "2018.08.18"]
[EventType "tourn"]
[EventCountry "FRA"]
[SourceTitle "playchess.com"]
[Source "ChessBase"]
[SourceQuality "1"]
[TimeControl "40/5400+30:1800+30"]

1. e4 {[%emt 0:04:19]} d6 {[%emt 0:00:00]} 2. d4 {[%emt 0:01:03]} Nf6 {[%emt 0:00:19]} 3. Nc3 {[%emt 0:02:34]} g6 {[%emt 0:00:44]} 4. Nf3 {[%emt 0:01:15]} Bg7 {[%emt 0:01:02]} 5. Be3 {[%emt 0:01:36]} O-O {[%emt 0:02:22]} 6. Qd2 {[%emt 0:01:08]} c6 {[%emt 0:04:22]} 7. Bh6 {[%emt 0:01:53]} b5 {[%emt 0:00:49]} 8. b4 {[%emt 0:01:51]} Nbd7 {[%emt 0:01:36]} 9. Bxg7 {[%emt 0:01:31]} Kxg7 {[%emt 0:00:18]} 10. Bd3 {[%emt 0:00:39]} a6 {[%emt 0:03:44]} 11. h3 {[%emt 0:04:26]} Nb6 {[%emt 0:07:19]} 12. Qg5 {[%emt 0:04:54]} h6 {[%emt 0:03:27]} 13. Qe3 {[%emt 0:02:58]} Be6 {[%emt 0:09:42]} 14. g4 {[%emt 0:00:57]} Nh7 {[%emt 0:04:20]} 15. Rg1 {[%emt 0:02:52]} Qc8 {[%emt 0:02:35]} 16. Kd2 {[%emt 0:03:28]} Bc4 {[%emt 0:00:48]} 17. h4 {[%emt 0:01:29]} Nf6 {[%emt 0:06:58]} 18. Qf4 {[%emt 0:02:11]} Be6 {[%emt 0:11:16]} 19. g5 {[%emt 0:01:52]} hxg5 {[%emt 0:00:09]} 20. hxg5 {[%emt 0:00:26]} Nh5 {[%emt 0:00:27]} 21. Qe3 {[%emt 0:00:36]} Bc4 {[%emt 0:06:28]} 22. Nh4 {[%emt 0:03:48]} e6 {[%emt 0:03:57]} 23. f4 {[%emt 0:00:58]} Bxd3 {[%emt 0:01:42]} 24. cxd3 {[%emt 0:00:22]} Qd7 {[%emt 0:02:30]} 25. Qf3 {[%emt 0:02:12]} d5 {[%emt 0:08:44]} 26. f5 {[%emt 0:04:33]} dxe4 {[%emt 0:03:36]} 27. f6+ {[%emt 0:01:16]} Kg8 {[%emt 0:01:26]} 28. Qxe4 {[%emt 0:00:58]} Qd6 {[%emt 0:00:43]} 29. Nxg6 {[%emt 0:01:38]} Qh2+ {[%emt 0:01:18]} 30. Rg2 {[%emt 0:01:57]} Qxg2+ {[%emt 0:00:12]} 31. Qxg2 {[%emt 0:00:11]} fxg6 {[%emt 0:00:04]} 32. Qxc6 {[%emt 0:00:29]} Nd5 {[%emt 0:06:08]} 33. Qxe6+ {[%emt 0:00:12]} 1-0

[Event "FRA-ch Open A-D 2018"]
[Site "Nimes"]
[Date "2018.08.23"]
[Round "6"]
[White "Jugeau, Frederic"]
[Black "Davidou, Delphine"]
[Result "1/2-1/2"]
[ECO "B31"]
[WhiteElo "1409"]
[BlackElo "1446"]
[Annotator "NA RC"]
[PlyCount "153"]
[EventDate "2018.08.18"]
[EventType "tourn"]
[EventCountry "FRA"]
[SourceTitle "playchess.com"]
[Source "ChessBase"]
[SourceQuality "1"]
[TimeControl "40/5400+30:1800+30"]

1. e4 {[%emt 0:00:00]} c5 {[%emt 0:00:00]} 2. Nf3 {[%emt 0:00:00]} Nc6 {[%emt 0:00:00]} 3. Bb5 {[%emt 0:00:21]} g6 {[%emt 0:00:38]} 4. Bxc6 {[%emt 0:01:24]} dxc6 {[%emt 0:00:11]} 5. d3 {[%emt 0:00:38]} Bg7 {[%emt 0:00:45]} 6. Nc3 {[%emt 0:00:17]} Nf6 {[%emt 0:02:42]} 7. O-O {[%emt 0:02:40]} Bg4 {[%emt 0:04:59]} 8. h3 {[%emt 0:03:49]} Bxf3 {[%emt 0:02:21]} 9. Qxf3 {[%emt 0:00:59]} O-O {[%emt 0:00:35]} 10. Be3 {[%emt 0:22:50]} b6 {[%emt 0:01:18]} 11. Rad1 {[%emt 0:08:49]} Ne8 {[%emt 0:08:04]} 12. Bc1 {[%emt 0:04:46]} Nc7 {[%emt 0:10:13]} 13. Ne2 {[%emt 0:05:09]} e5 {[%emt 0:12:05]} 14. Qg3 {[%emt 0:04:01]} Ne6 {[%emt 0:03:46]} 15. c3 {[%emt 0:02:08]} b5 {[%emt 0:05:05]} 16. f4 {[%emt 0:01:06]} exf4 {[%emt 0:11:00]} 17. Nxf4 {[%emt 0:00:29]} Qc7 {[%emt 0:07:19]} 18. Qf2 {[%emt 0:05:30]} b4 {[%emt 0:02:38]} 19. Nxe6 {[%emt 0:02:06]} fxe6 {[%emt 0:00:59]} 20. Qxc5 {[%emt 0:00:25]} bxc3 {[%emt 0:04:20]} 21. bxc3 {[%emt 0:01:19]} Qb6 {[%emt 0:05:33]} 22. Rxf8+ {[%emt 0:04:50]} Rxf8 {[%emt 0:00:09]} 23. Qxb6 {[%emt 0:01:39]} axb6 {[%emt 0:00:11]} 24. Bb2 {[%emt 0:01:19]} b5 {[%emt 0:03:22]} 25. a3 {[%emt 0:00:52]} c5 {[%emt 0:03:18]} 26. Rd2 Rb8 {[%emt 0:01:19]} 27. d4 {[%emt 0:10:24]} cxd4 {[%emt 0:02:45]} 28. cxd4 {[%emt 0:00:17]} Ra8 {[%emt 0:02:53]} 29. Kf1 {[%emt 0:02:48]} Bf8 {[%emt 0:01:02]} 30. Rd3 {[%emt 0:01:17]} b4 {[%emt 0:00:58]} 31. axb4 {[%emt 0:02:01]} Bxb4 {[%emt 0:00:39]} 32. Rd1 {[%emt 0:05:10]} Ra2 {[%emt 0:01:09]} 33. Rb1 {[%emt 0:03:15]} Kf7 {[%emt 0:01:29]} 34. Kg1 {[%emt 0:01:57]} Ba3 {[%emt 0:01:11]} 35. Bxa3 {[%emt 0:00:44]} Rxa3 {[%emt 0:00:06]} 36. Rf1+ {[%emt 0:01:05]} Ke7 {[%emt 0:00:17]} 37. Rd1 {[%emt 0:00:32]} Ra5 {[%emt 0:01:06]} 38. Kf2 {[%emt 0:00:35]} Ra2+ {[%emt 0:00:48]} 39. Kf3 {[%emt 0:00:25]} Kf6 {[%emt 0:00:55]} 40. Kg3 {[%emt 0:00:50]} h5 {[%emt 0:00:49]} 41. Rd3 {[%emt 0:30:20]} g5 {[%emt 0:08:29]} 42. Rf3+ {[%emt 0:00:00]} Ke7 {[%emt 0:02:30]} 43. Rf2 {[%emt 0:00:00]} Ra4 {[%emt 0:08:49]} 44. Rd2 {[%emt 0:00:00]} Ra3+ {[%emt 0:02:15]} 45. Kf2 {[%emt 0:00:00]} Kd6 {[%emt 0:00:43]} 46. Ke2 {[%emt 0:00:00]} h4 {[%emt 0:04:16]} 47. Rd3 {[%emt 0:00:00]} Ra2+ {[%emt 0:01:38]} 48. Kf3 {[%emt 0:00:00]} Ke7 {[%emt 0:00:45]} 49. Re3 {[%emt 0:00:00]} Kf6 {[%emt 0:00:22]} 50. Re2 {[%emt 0:00:00]} Ra3+ {[%emt 0:00:48]} 51. Re3 {[%emt 0:00:00]} Ra2 {[%emt 0:01:54]} 52. Rd3 {[%emt 0:00:00]} Ra5 {[%emt 0:01:17]} 53. Kg4 {[%emt 0:00:00]} Kg6 {[%emt 0:00:45]} 54. d5 {[%emt 0:00:00]} exd5 {[%emt 0:00:28]} 55. exd5 {[%emt 0:00:00]} Ra4+ {[%emt 0:00:34]} 56. Kf3 {[%emt 0:00:00]} Rf4+ {[%emt 0:00:39]} 57. Ke3 {[%emt 0:00:00]} Kf7 {[%emt 0:01:09]} 58. Rd4 {[%emt 0:00:00]} Rf1 {[%emt 0:00:37]} 59. Rd2 {[%emt 0:00:15]} Ke7 {[%emt 0:00:25]} 60. Ke2 {[%emt 0:01:04]} Rf6 {[%emt 0:00:29]} 61. Ke3 {[%emt 0:01:57]} Kd6 {[%emt 0:00:59]} 62. Rd4 {[%emt 0:02:02]} Rf8 {[%emt 0:00:51]} 63. Rg4 {[%emt 0:01:10]} Rf5 {[%emt 0:00:24]} 64. Rd4 {[%emt 0:01:30]} Rxd5 {[%emt 0:00:39]} 65. Rxd5+ {[%emt 0:00:47]} Kxd5 {[%emt 0:00:03]} 66. Kf3 {[%emt 0:00:20]} Ke6 {[%emt 0:00:08]} 67. Ke4 {[%emt 0:00:49]} Kf6 {[%emt 0:00:16]} 68. Ke3 {[%emt 0:00:41]} Kg6 {[%emt 0:00:30]} 69. Kf2 {[%emt 0:00:43]} Kf6 {[%emt 0:00:27]} 70. Ke3 {[%emt 0:00:20]} Ke5 {[%emt 0:00:40]} 71. Kf3 {[%emt 0:00:52]} Kf5 {[%emt 0:00:15]} 72. Ke3 {[%emt 0:01:28]} g4 {[%emt 0:00:18]} 73. Kf2 {[%emt 0:01:25]} Kf4 {[%emt 0:00:20]} 74. hxg4 {[%emt 0:00:29]} Kxg4 {[%emt 0:00:06]} 75. Kg1 {[%emt 0:00:42]} Kg3 {[%emt 0:00:23]} 76. Kh1 {[%emt 0:00:23]} h3 {[%emt 0:00:28]} 77. gxh3 {[%emt 0:00:21]} 1/2-1/2

[Event "FRA-ch Open A-D 2018"]
[Site "Nimes"]
[Date "2018.08.23"]
[Round "6"]
[White "Berfini, Ghjuliana"]
[Black "Alcindor, Samuel"]
[Result "0-1"]
[ECO "D02"]
[WhiteElo "1363"]
[BlackElo "1462"]
[Annotator "NA RC"]
[PlyCount "148"]
[EventDate "2018.08.18"]
[EventType "tourn"]
[EventCountry "FRA"]
[SourceTitle "playchess.com"]
[Source "ChessBase"]
[SourceQuality "1"]
[TimeControl "40/5400+30:1800+30"]

1. d4 {[%emt 0:00:00]} d5 {[%emt 0:00:00]} 2. Nf3 {[%emt 0:00:00]} e6 {[%emt 0:00:04]} 3. g3 {[%emt 0:00:08]} c5 {[%emt 0:01:17]} 4. Bg2 {[%emt 0:02:24]} Nc6 {[%emt 0:00:44]} 5. Be3 {[%emt 0:01:47]} Qf6 {[%emt 0:09:11]} 6. Nc3 {[%emt 0:03:32]} c4 {[%emt 0:03:50]} 7. O-O {[%emt 0:01:59]} Bd6 {[%emt 0:01:53]} 8. Bg5 {[%emt 0:03:01]} Qg6 {[%emt 0:00:26]} 9. Nb5 {[%emt 0:01:25]} Bb8 {[%emt 0:02:05]} 10. Qd2 {[%emt 0:05:32]} f6 {[%emt 0:00:20]} 11. Bf4 {[%emt 0:01:09]} e5 {[%emt 0:05:05]} 12. Be3 {[%emt 0:04:13]} Nge7 {[%emt 0:06:56]} 13. dxe5 {[%emt 0:02:18]} fxe5 {[%emt 0:00:39]} 14. Nh4 {[%emt 0:04:25]} Qe6 {[%emt 0:06:46]} 15. Bc5 {[%emt 0:09:57]} O-O {[%emt 0:07:31]} 16. Bxe7 {[%emt 0:02:18]} Nxe7 {[%emt 0:00:21]} 17. Nc3 {[%emt 0:02:24]} Rd8 {[%emt 0:08:05]} 18. Ne4 {[%emt 0:05:39]} Qb6 {[%emt 0:04:20]} 19. Nc3 {[%emt 0:27:46]} Qxb2 {[%emt 0:08:49]} 20. Bxd5+ {[%emt 0:03:19]} Kf8 {[%emt 0:02:26]} 21. e4 {[%emt 0:02:29]} Be6 {[%emt 0:04:25]} 22. Rab1 {[%emt 0:02:18]} Qa3 {[%emt 0:00:58]} 23. Nf3 {[%emt 0:02:07]} Nxd5 {[%emt 0:07:26]} 24. exd5 {[%emt 0:01:29]} Bh3 {[%emt 0:09:52]} 25. Rfe1 {[%emt 0:00:53]} Qe7 {[%emt 0:01:19]} 26. Qg5 {[%emt 0:00:45]} Qxg5 {[%emt 0:01:40]} 27. Nxg5 {[%emt 0:00:05]} Bf5 {[%emt 0:00:06]} 28. Rxb7 {[%emt 0:00:47]} Bd7 {[%emt 0:01:57]} 29. Nb5 {[%emt 0:00:55]} h6 {[%emt 0:00:56]} 30. Ne6+ {[%emt 0:00:15]} Bxe6 {[%emt 0:00:10]} 31. dxe6 {[%emt 0:00:07]} Re8 {[%emt 0:00:12]} 32. Nc7 {[%emt 0:01:04]} Re7 {[%emt 0:01:15]} 33. Nxa8 {[%emt 0:00:48]} Rxb7 {[%emt 0:00:10]} 34. Rd1 {[%emt 0:00:17]} Ke7 {[%emt 0:00:18]} 35. Rd5 {[%emt 0:01:08]} Bd6 {[%emt 0:01:16]} 36. Ra5 {[%emt 0:03:15]} Kxe6 {[%emt 0:00:22]} 37. Ra6 {[%emt 0:00:30]} Kd5 {[%emt 0:00:25]} 38. Ra5+ {[%emt 0:00:55]} Kc6 {[%emt 0:00:42]} 39. Ra6+ {[%emt 0:00:44]} Kc5 {[%emt 0:00:48]} 40. Ra5+ {[%emt 0:00:16]} Kc6 {[%emt 0:01:37]} 41. Ra6+ {[%emt 0:30:16]} Kd7 {[%emt 0:31:26]} 42. Ra4 {[%emt 0:01:25]} c3 {[%emt 0:02:19]} 43. Ra5 {[%emt 0:00:19]} Ke6 {[%emt 0:00:00]} 44. Ra6 {[%emt 0:00:00]} Kd7 {[%emt 0:00:00]} 45. Ra5 {[%emt 0:00:00]} Kc8 {[%emt 0:00:00]} 46. Rd5 {[%emt 0:00:00]} Rd7 {[%emt 0:00:00]} 47. Rb5 {[%emt 0:00:00]} Bb8 {[%emt 0:00:00]} 48. Kg2 {[%emt 0:00:00]} Rd2 {[%emt 0:00:00]} 49. Rc5+ {[%emt 0:00:00]} Kb7 {[%emt 0:00:00]} 50. Rxc3 {[%emt 0:00:00]} Kxa8 {[%emt 0:00:00]} 51. Kf3 {[%emt 0:00:00]} Rd4 {[%emt 0:00:00]} 52. Ke3 {[%emt 0:00:00]} Ra4 {[%emt 0:00:00]} 53. a3 {[%emt 0:00:00]} Kb7 {[%emt 0:00:00]} 54. Rb3+ {[%emt 0:00:00]} Kc8 {[%emt 0:00:00]} 55. Rc3+ {[%emt 0:00:00]} Bc7 {[%emt 0:00:00]} 56. f4 {[%emt 0:00:00]} exf4+ {[%emt 0:00:00]} 57. gxf4 {[%emt 0:00:00]} Kb7 {[%emt 0:00:00]} 58. Rb3+ {[%emt 0:00:00]} Bb6+ {[%emt 0:00:00]} 59. Kf3 {[%emt 0:00:00]} Rc4 {[%emt 0:00:00]} 60. Rb2 {[%emt 0:00:00]} Rc3+ {[%emt 0:00:00]} 61. Ke4 {[%emt 0:00:00]} Rxa3 {[%emt 0:00:00]} 62. Kf5 {[%emt 0:00:00]} Kc7 {[%emt 0:00:00]} 63. Rb4 {[%emt 0:00:00]} Rc3 {[%emt 0:00:00]} 64. h4 {[%emt 0:00:00]} a5 {[%emt 0:00:00]} 65. Ra4 {[%emt 0:00:00]} Rc6 {[%emt 0:00:00]} 66. Re4 {[%emt 0:00:00]} Rf6+ {[%emt 0:00:00]} 67. Kg4 {[%emt 0:00:00]} Kc6 {[%emt 0:00:00]} 68. Kf3 {[%emt 0:00:00]} Bc7 {[%emt 0:00:00]} 69. Ra4 {[%emt 0:00:00]} Kb5 {[%emt 0:00:00]} 70. Ra2 {[%emt 0:00:00]} Rxf4+ {[%emt 0:00:00]} 71. Kg2 {[%emt 0:00:00]} Rg4+ {[%emt 0:00:00]} 72. Kh3 {[%emt 0:00:00]} Rg3+ {[%emt 0:00:00]} 73. Kh2 {[%emt 0:00:00]} Ra3+ {[%emt 0:00:00]} 74. Kg2 {[%emt 0:00:00]} Rxa2 {[%emt 0:00:00]} 0-1

[Event "FRA-ch Open A-D 2018"]
[Site "Nimes"]
[Date "2018.08.23"]
[Round "6"]
[White "Sithisak, Remi"]
[Black "Bernard, Thomas"]
[Result "1-0"]
[ECO "E11"]
[WhiteElo "1360"]
[BlackElo "1466"]
[Annotator "NA RC"]
[PlyCount "67"]
[EventDate "2018.08.18"]
[EventType "tourn"]
[EventCountry "FRA"]
[SourceTitle "playchess.com"]
[Source "ChessBase"]
[SourceQuality "1"]
[TimeControl "40/5400+30:1800+30"]

1. d4 {[%emt 0:00:53]} e6 {[%emt 0:00:00]} 2. c4 {[%emt 0:00:46]} Nf6 {[%emt 0:00:11]} 3. Nf3 {[%emt 0:00:58]} Bb4+ {[%emt 0:01:35]} 4. Bd2 {[%emt 0:02:05]} Bxd2+ {[%emt 0:03:27]} 5. Qxd2 {[%emt 0:03:35]} O-O {[%emt 0:03:38]} 6. Nc3 {[%emt 0:01:33]} b6 {[%emt 0:06:51]} 7. e3 {[%emt 0:07:11]} Bb7 {[%emt 0:02:46]} 8. Be2 {[%emt 0:03:24]} d6 {[%emt 0:02:53]} 9. O-O {[%emt 0:02:10]} Nbd7 {[%emt 0:01:53]} 10. Rfd1 {[%emt 0:03:34]} Qe7 {[%emt 0:06:04]} 11. b4 {[%emt 0:09:30]} Rfd8 {[%emt 0:11:30]} 12. Qc2 {[%emt 0:03:45]} a5 {[%emt 0:14:18]} 13. a3 {[%emt 0:13:31]} axb4 {[%emt 0:06:19]} 14. axb4 {[%emt 0:00:33]} c5 {[%emt 0:03:11]} 15. Qb2 {[%emt 0:09:54]} Rdb8 {[%emt 0:03:44]} 16. Rxa8 {[%emt 0:13:38]} Bxa8 {[%emt 0:01:53]} 17. Rb1 {[%emt 0:00:45]} Bb7 {[%emt 0:05:05]} 18. Nd2 {[%emt 0:02:02]} cxd4 {[%emt 0:05:45]} 19. exd4 {[%emt 0:01:08]} Ba6 {[%emt 0:02:08]} 20. Ra1 {[%emt 0:02:13]} Bb7 {[%emt 0:01:47]} 21. Bf3 {[%emt 0:02:09]} Bxf3 {[%emt 0:01:46]} 22. Nxf3 {[%emt 0:00:29]} d5 {[%emt 0:02:07]} 23. cxd5 {[%emt 0:03:58]} Nxd5 {[%emt 0:00:17]} 24. Nxd5 {[%emt 0:01:59]} exd5 {[%emt 0:00:10]} 25. Re1 {[%emt 0:00:53]} Qd6 {[%emt 0:02:06]} 26. Ne5 {[%emt 0:02:29]} Re8 {[%emt 0:04:34]} 27. Qc3 {[%emt 0:02:27]} Qe7 {[%emt 0:02:44]} 28. g3 {[%emt 0:04:03]} Nf6 {[%emt 0:01:04]} 29. Nd3 {[%emt 0:01:46]} Ne4 {[%emt 0:01:22]} 30. Qc6 {[%emt 0:00:31]} Qd8 {[%emt 0:00:54]} 31. f3 {[%emt 0:00:51]} Nf6 {[%emt 0:00:09]} 32. Rxe8+ {[%emt 0:00:10]} Nxe8 {[%emt 0:00:06]} 33. Ne5 {[%emt 0:00:51]} f6 {[%emt 0:02:28]} 34. Qe6+ 1-0